bitfinex/quotes_BTCUSD_20250508
["timestamp","ask_amount","ask_price","bid_price","bid_amount"]
[1746694364745,0.003,99713.0,99712.0,2.050431]
[1746694365812,0.003,99713.0,99712.0,2.007274]
[1746694366044,0.003,99713.0,99712.0,1.276626]
[1746694366253,0.003,99713.0,99712.0,0.190691]
[1746694366427,0.0189,99713.0,99712.0,0.001]
[1746694366567,0.0351,99713.0,99712.0,0.001]
[1746694371277,0.0189,99713.0,99712.0,0.001]
[1746694371441,0.0343,99713.0,99712.0,0.001]
[1746694372180,0.15376027,99713.0,99712.0,0.001]
[1746694372582,0.25388799,99713.0,99712.0,0.001]
[1746694372783,0.26328651,99713.0,99712.0,0.001]
[1746694373158,1.31106891,99713.0,99712.0,0.001]
[1746694373284,1.28287058,99713.0,99712.0,0.001]
[1746694374485,1.28187058,99713.0,99712.0,0.00071802]
[1746694374686,1.16105667,99713.0,99712.0,0.00071802]
[1746694374896,1.16205667,99713.0,99712.0,0.00071802]
[1746694375103,0.25694739,99712.0,99709.0,6.849e-05]
[1746694375396,0.23238168,99710.0,99709.0,6.849e-05]
[1746694375620,0.3330486,99710.0,99709.0,6.849e-05]
[1746694375807,0.34009777,99710.0,99709.0,6.849e-05]
[1746694376032,0.34947803,99710.0,99709.0,6.849e-05]
[1746694376237,0.35217138,99710.0,99709.0,6.849e-05]
[1746694376451,0.01002978,99703.0,99698.0,0.01003029]
[1746694376656,0.01002978,99703.0,99698.0,0.01010274]
[1746694377888,0.01002988,99702.0,99698.0,0.01010274]
[1746694378094,0.01002988,99702.0,99699.0,0.01003019]
[1746694378299,0.01002998,99701.0,99699.0,0.0350332]
[1746694378501,0.01002998,99701.0,99698.0,0.01110274]
[1746694378676,0.01002998,99701.0,99698.0,0.01010274]
[1746694379078,0.01002998,99701.0,99698.0,0.01110274]
[1746694379308,0.01002998,99701.0,99698.0,0.01010274]
[1746694379947,0.01102998,99701.0,99698.0,0.00107245]
[1746694381602,0.2006018,99700.0,99698.0,0.00107245]
[1746694382257,0.2157018,99700.0,99698.0,0.00107245]
[1746694382454,0.2006018,99700.0,99698.0,0.00107245]
[1746694382781,0.01002998,99701.0,99698.0,7.245e-05]
[1746694383108,0.20160211,99700.0,99698.0,0.00107245]
[1746694384681,0.20060211,99700.0,99698.0,7.245e-05]
[1746694385026,0.20060211,99700.0,99698.0,0.00107245]
[1746694385228,0.20060211,99700.0,99698.0,7.245e-05]
[1746694385630,0.20060211,99700.0,99698.0,0.00107245]
[1746694385631,0.20160211,99700.0,99698.0,0.00107245]
[1746694386169,0.001,99700.0,99698.0,0.23596382]
[1746694386347,0.21061633,99708.0,99702.0,0.2106275]
[1746694386546,0.01002918,99709.0,99705.0,0.01002958]
[1746694387152,0.01002938,99707.0,99704.0,0.20059181]
[1746694387352,0.01002938,99707.0,99703.0,0.01002978]
[1746694387787,0.01002928,99708.0,99705.0,0.01002958]
[1746694387992,0.001,99709.0,99706.0,0.01002948]
[1746694388168,0.21061058,99711.0,99706.0,0.01002948]
[1746694388169,0.22639741,99717.0,99709.0,0.01002918]
[1746694388362,0.22639741,99717.0,99707.0,0.15]
[1746694388363,0.01002878,99713.0,99707.0,0.15]
[1746694388607,0.01002888,99712.0,99708.0,0.21061499]
[1746694388908,0.0157,99722.0,99717.0,0.20056601]
[1746694389049,0.01002797,99721.0,99718.0,4.71219]
[1746694389251,0.01002777,99723.0,99717.0,0.20056606]
[1746694389505,0.01002797,99721.0,99712.0,0.4]
[1746694389700,0.2105833,99723.0,99712.0,0.4]
[1746694389701,0.01002777,99723.0,99714.0,0.01002868]
[1746694389927,0.01002777,99723.0,99717.0,0.01002838]
[1746694390132,0.01002767,99724.0,99717.0,0.01002838]
[1746694390133,0.01002767,99724.0,99720.0,0.01002807]
[1746694390298,0.01002757,99725.0,99721.0,0.01002797]
[1746694390498,0.01002767,99724.0,99720.0,0.01002807]
[1746694390957,0.01002777,99723.0,99720.0,0.01002807]
[1746694391182,0.01302787,99722.0,99719.0,0.01002817]
[1746694391375,0.01302787,99722.0,99718.0,0.01002827]
[1746694391376,0.21058718,99722.0,99720.0,4.2346]
[1746694391579,0.01002797,99721.0,99715.0,0.2106002]
[1746694392236,0.01002797,99721.0,99716.0,0.01002848]
[1746694392386,0.01002797,99721.0,99719.0,0.001]
[1746694392592,0.01002797,99721.0,99717.0,0.01002838]
[1746694392969,0.01102797,99721.0,99717.0,0.01002838]
[1746694393907,0.01002817,99719.0,99716.0,0.01002848]
[1746694394505,0.20056961,99716.0,99715.0,0.4]
[1746694394685,0.21626961,99716.0,99715.0,0.4]
[1746694395093,0.23246961,99716.0,99715.0,0.4]
[1746694395677,0.20058571,99708.0,99698.0,0.03515695]
[1746694395886,0.23268571,99708.0,99698.0,0.28334625]
[1746694396091,0.23268571,99708.0,99698.0,0.27331596]
[1746694396379,0.25143614,99708.0,99699.0,0.01003019]
[1746694396586,0.25143614,99708.0,99698.0,0.67331596]
[1746694396587,0.25143614,99708.0,99698.0,0.68134041]
[1746694397000,0.23268571,99708.0,99698.0,0.68134041]
[1746694397370,0.23268571,99708.0,99699.0,0.01003019]
[1746694397956,0.2514379,99708.0,99699.0,0.01003019]
[1746694398406,0.23268571,99708.0,99700.0,0.01003009]
[1746694398552,0.23268571,99708.0,99698.0,0.67131012]
[1746694398774,0.23268571,99708.0,99698.0,0.68134041]
[1746694398981,0.23268571,99708.0,99699.0,0.01003019]
[1746694399512,0.23268571,99708.0,99698.0,0.67131012]
[1746694399716,0.23268571,99708.0,99698.0,0.68134041]
[1746694399923,0.25143916,99708.0,99698.0,0.67131012]
[1746694400268,0.25143916,99708.0,99703.0,0.01002978]
[1746694400506,0.25143916,99708.0,99700.0,0.21063163]
[1746694400507,0.25143916,99708.0,99700.0,0.01003009]
[1746694400693,0.23268571,99708.0,99698.0,0.67131012]
[1746694400898,0.23268571,99708.0,99699.0,0.01003019]
[1746694401062,0.23268571,99708.0,99703.0,0.01002978]
[1746694401262,0.23368571,99708.0,99707.0,0.151]
[1746694401465,0.25244025,99708.0,99707.0,0.151]
[1746694401842,0.25244025,99708.0,99707.0,0.001]
[1746694402368,0.23368571,99708.0,99707.0,0.001]
[1746694402750,0.23468571,99708.0,99707.0,0.001]
[1746694403336,0.25344562,99708.0,99707.0,0.001]
[1746694403960,0.23468571,99708.0,99707.0,0.001]
[1746694404804,0.01002988,99702.0,99698.0,0.11362985]
[1746694405018,0.01002998,99701.0,99699.0,0.573157]
[1746694405210,0.01002998,99701.0,99698.0,0.583194]
[1746694405417,0.2006018,99700.0,99698.0,0.567133]
[1746694405619,0.01003019,99699.0,99696.0,0.40007272]
[1746694405812,0.01003019,99699.0,99697.0,0.61933]
[1746694405990,0.20060582,99698.0,99697.0,0.61933]
[1746694406189,0.22723238,99700.0,99697.0,0.65971823]
[1746694406389,0.21063238,99700.0,99698.0,0.623344]
[1746694406786,0.01003009,99700.0,99698.0,0.623344]
[1746694407002,0.01003009,99700.0,99698.0,0.585201]
[1746694407213,0.21063315,99700.0,99697.0,0.04038823]
[1746694407442,0.21063315,99700.0,99696.0,0.41010321]
[1746694407616,0.016,99698.0,99696.0,0.41010321]
[1746694407828,0.016,99698.0,99697.0,0.569141]
[1746694408223,0.016,99698.0,99696.0,0.41010321]
[1746694408396,0.01003009,99700.0,99697.0,0.63136739]
[1746694408598,0.01003009,99700.0,99698.0,1.043924]
[1746694408797,0.01103009,99700.0,99698.0,1.043924]
[1746694409284,0.0156,99699.0,99698.0,0.991728]
[1746694409461,0.0156,99699.0,99698.0,1.007789]
[1746694409659,0.01003009,99700.0,99698.0,1.007789]
[1746694410067,0.001,99700.0,99698.0,1.008789]
[1746694410252,0.001,99700.0,99699.0,1.033887]
[1746694410653,0.001,99700.0,99698.0,0.001]
[1746694410861,0.001,99700.0,99699.0,1.066007]
[1746694411271,0.015,99707.0,99704.0,0.20059375]
[1746694411470,0.01002767,99724.0,99716.0,0.01002848]
[1746694411675,0.01002817,99719.0,99714.0,0.24818736]
[1746694411878,0.01002827,99718.0,99715.0,0.2565]
[1746694413040,0.002,99718.0,99715.0,0.26652858]
[1746694413189,0.002,99718.0,99715.0,0.01002858]
[1746694413404,0.002,99718.0,99715.0,0.21059909]
[1746694413575,0.002,99718.0,99717.0,0.2005676]
[1746694413782,0.002,99718.0,99717.0,0.20257305]
[1746694415443,0.007,99718.0,99717.0,0.20357305]
[1746694415643,0.007,99718.0,99717.0,0.21967305]
[1746694415871,0.007,99718.0,99717.0,0.2015676]
[1746694416067,0.007,99718.0,99717.0,0.20357304]
[1746694416909,0.20053596,99733.0,99717.0,0.20357304]
[1746694416910,0.01002596,99741.0,99736.0,0.01002646]
[1746694417077,0.01002536,99747.0,99736.0,0.01002646]
[1746694417078,0.0153,99751.0,99741.0,0.01002596]
[1746694417278,0.08034024,99768.0,99743.0,0.01002576]
[1746694417279,0.00703238,99744.0,99743.0,0.01002576]
[1746694417490,0.01002415,99759.0,99752.0,0.01002486]
[1746694417739,0.01002425,99758.0,99754.0,0.01002466]
[1746694418275,0.01047893,99758.0,99754.0,0.01002466]
[1746694418487,0.00045468,99758.0,99755.0,0.21051493]
[1746694418896,0.00345468,99758.0,99757.0,0.20048718]
[1746694419271,0.00345468,99758.0,99757.0,3.54501275]
[1746694419411,0.00645468,99758.0,99757.0,4.18276518]
[1746694419676,0.00645468,99758.0,99757.0,8.90598918]
[1746694420019,0.00045468,99758.0,99757.0,10.34387718]
[1746694420133,0.00745468,99758.0,99757.0,10.32917718]
[1746694420335,0.00745468,99758.0,99757.0,8.50807818]
[1746694420536,0.01002134,99787.0,99782.0,0.01002184]
[1746694420765,0.01002164,99784.0,99780.0,0.01002204]
[1746694420976,0.01002184,99782.0,99779.0,0.01002214]
[1746694421178,0.20044297,99779.0,99777.0,0.23615317]
[1746694421416,0.01002204,99780.0,99776.0,0.01002245]
[1746694421996,0.01002214,99779.0,99775.0,0.17049532]
[1746694422326,0.001,99779.0,99778.0,0.20044498]
[1746694422522,0.001,99779.0,99777.0,0.20044699]
[1746694423075,0.003,99779.0,99776.0,0.01002245]
[1746694423275,0.002,99779.0,99776.0,0.01002245]
[1746694423752,0.001,99780.0,99777.0,0.01002234]
[1746694424160,0.001,99780.0,99777.0,0.21046884]
[1746694424370,0.001,99780.0,99778.0,0.00200433]
[1746694424578,0.001,99779.0,99778.0,0.00200433]
[1746694425479,0.001,99780.0,99779.0,0.20044297]
[1746694425641,0.001,99780.0,99779.0,0.20244715]
[1746694426428,0.01002104,99790.0,99786.0,0.01002144]
[1746694427043,0.01002124,99788.0,99784.0,0.01002164]
[1746694427270,0.01002114,99789.0,99786.0,0.01002144]
[1746694428460,0.01102114,99789.0,99786.0,0.01702144]
[1746694428663,0.001,99789.0,99787.0,2.0878669]
[1746694428869,0.001,99789.0,99788.0,2.88525496]
[1746694428994,0.001,99789.0,99788.0,2.883251]
[1746694429612,0.01001963,99804.0,99800.0,0.01002004]
[1746694429838,0.01001943,99806.0,99801.0,0.01001993]
[1746694430041,0.01001953,99805.0,99801.0,0.01001993]
[1746694430280,0.01001953,99805.0,99802.0,0.01001983]
[1746694430419,0.01001953,99805.0,99801.0,0.01001993]
[1746694431027,0.0162,99802.0,99800.0,7.272e-05]
[1746694431318,0.33256571,99801.0,99800.0,7.272e-05]
[1746694432428,0.33256571,99801.0,99800.0,0.00507272]
[1746694432926,0.33256571,99801.0,99800.0,0.00407272]
[1746694433155,0.33356571,99801.0,99800.0,0.01107272]
[1746694433393,0.01002064,99794.0,99790.0,0.05646143]
[1746694433643,0.21043559,99793.0,99790.0,8.67e-05]
[1746694433880,0.22653559,99793.0,99790.0,8.67e-05]
[1746694434090,0.0155,99792.0,99790.0,8.67e-05]
[1746694434293,0.02552084,99792.0,99790.0,8.67e-05]
[1746694434495,0.0155,99792.0,99790.0,8.67e-05]
[1746694435430,0.01002064,99794.0,99790.0,0.01010774]
[1746694435658,0.02002064,99794.0,99790.0,0.0010867]
[1746694435902,0.02002064,99794.0,99790.0,0.01110774]
[1746694436125,0.02572064,99794.0,99790.0,8.67e-05]
[1746694436321,0.01,99792.0,99790.0,0.0010867]
[1746694436548,0.002,99792.0,99790.0,8.67e-05]
[1746694436781,0.21043583,99793.0,99790.0,8.67e-05]
[1746694437005,0.22584573,99793.0,99790.0,0.0010867]
[1746694437208,0.22584573,99793.0,99790.0,8.67e-05]
[1746694438573,0.014,99792.0,99790.0,0.0010867]
[1746694439002,0.014,99792.0,99790.0,8.67e-05]
[1746694439205,0.0164,99791.0,99790.0,0.0010867]
[1746694439633,0.18058683,99791.0,99790.0,0.0010867]
[1746694439834,0.13366692,99791.0,99790.0,8.67e-05]
[1746694440024,0.13366692,99791.0,99790.0,0.0010867]
[1746694440369,0.13366692,99791.0,99790.0,8.67e-05]
[1746694440781,0.14299272,99791.0,99790.0,8.67e-05]
[1746694441614,0.33741159,99791.0,99790.0,8.67e-05]
[1746694441785,0.34841159,99791.0,99790.0,0.0010867]
[1746694441993,0.36707505,99791.0,99790.0,0.0010867]
[1746694444650,0.37408937,99791.0,99790.0,0.0010867]
[1746694444882,0.1466705,99791.0,99790.0,0.0010867]
[1746694445254,0.17095618,99791.0,99790.0,0.0010867]
[1746694445758,0.25117257,99791.0,99790.0,0.0010867]
[1746694446188,0.17095618,99791.0,99790.0,0.0010867]
[1746694447114,0.17798489,99791.0,99790.0,0.0010867]
[1746694447318,0.15932143,99791.0,99790.0,0.0010867]
[1746694447740,0.17806468,99791.0,99790.0,0.0010867]
[1746694448315,0.1780672,99791.0,99790.0,0.0010867]
[1746694450645,0.25899469,99791.0,99790.0,0.0010867]
[1746694451100,0.1780672,99791.0,99790.0,0.0010867]
[1746694451306,0.20617808,99791.0,99790.0,0.0010867]
[1746694453315,0.20557808,99791.0,99790.0,0.0010867]
[1746694461475,0.1774672,99791.0,99790.0,0.0010867]
[1746694466936,0.1461672,99791.0,99790.0,0.0010867]
[1746694468012,0.04610028,99791.0,99790.0,0.20150758]
[1746694468435,0.06610028,99791.0,99790.0,0.20150758]
[1746694469087,0.04735703,99791.0,99790.0,0.20150758]
[1746694469302,0.0403258,99791.0,99790.0,0.21800758]
[1746694469516,0.031,99791.0,99790.0,0.21800758]
[1746694469720,0.031,99791.0,99790.0,0.23410758]
[1746694470756,0.031,99791.0,99790.0,0.20150758]
[1746694471635,0.031,99791.0,99790.0,0.21650758]
[1746694471852,0.031,99791.0,99790.0,0.23200758]
[1746694472285,0.031,99791.0,99790.0,3.98143958]
[1746694472750,0.031,99791.0,99790.0,1.02023958]
[1746694473790,0.031,99791.0,99790.0,0.89793958]
[1746694474031,0.031,99791.0,99790.0,1.77403958]
[1746694474202,0.031,99791.0,99790.0,1.06293958]
[1746694474793,0.031,99791.0,99790.0,1.07893958]
[1746694476049,0.031,99791.0,99790.0,1.06293958]
[1746694476349,0.031,99791.0,99790.0,1.28243958]
[1746694478883,0.011,99791.0,99790.0,1.26243958]
[1746694479067,0.011,99791.0,99790.0,0.70987058]
[1746694480114,0.01002024,99798.0,99794.0,0.01002064]
[1746694480348,0.01002004,99800.0,99795.0,0.35198054]
[1746694480521,0.01002014,99799.0,99795.0,0.01002054]
[1746694480703,0.01002024,99798.0,99795.0,0.41002054]
[1746694481344,0.01502024,99798.0,99795.0,0.41002054]
[1746694481903,0.01002024,99798.0,99795.0,0.41002054]
[1746694482097,0.01502024,99798.0,99795.0,0.41102054]
[1746694482434,0.01502024,99798.0,99795.0,0.41002054]
[1746694482848,0.012,99798.0,99795.0,0.61143093]
[1746694483050,0.012,99798.0,99797.0,0.20040682]
[1746694483654,0.012,99798.0,99795.0,0.61143093]
[1746694483907,0.007,99798.0,99797.0,0.20040682]
[1746694484524,0.013,99798.0,99797.0,0.20040682]
[1746694484857,0.006,99798.0,99797.0,0.20040682]
[1746694485063,0.013,99798.0,99797.0,0.20140682]
[1746694486334,0.013,99798.0,99797.0,8.38625282]
[1746694486580,0.013,99798.0,99797.0,8.38725582]
[1746694487125,0.013,99798.0,99797.0,8.40385582]
[1746694487319,0.013,99798.0,99797.0,8.80385582]
[1746694487662,0.013,99798.0,99797.0,8.78725582]
[1746694488691,0.013,99798.0,99797.0,8.28385682]
[1746694489690,0.013,99798.0,99797.0,7.88385682]
[1746694490846,0.013,99798.0,99797.0,7.65436]
[1746694491071,0.013,99798.0,99797.0,7.85476682]
[1746694492570,0.013,99798.0,99797.0,7.73643782]
[1746694492738,0.013,99798.0,99797.0,7.117868]
[1746694492938,0.013,99798.0,99797.0,2.18392282]
[1746694496128,0.013,99798.0,99797.0,0.20040682]
[1746694496325,0.013,99798.0,99797.0,2.80464882]
[1746694496592,0.013,99798.0,99797.0,2.54392382]
[1746694497007,0.013,99798.0,99797.0,2.85868682]
[1746694502614,0.013,99798.0,99797.0,2.45868682]
[1746694502849,0.013,99798.0,99797.0,2.35740582]
[1746694505255,0.013,99798.0,99797.0,2.32030282]
[1746694506472,0.013,99798.0,99797.0,2.72030282]
[1746694507475,0.01304,99798.0,99797.0,2.72030282]
[1746694508931,0.01304,99798.0,99797.0,0.99149682]
[1746694509160,0.02834,99798.0,99797.0,0.99149682]
[1746694509550,0.01304,99798.0,99797.0,0.99149682]
[1746694514785,0.01304,99798.0,99797.0,0.79109]
[1746694515246,0.01304,99798.0,99797.0,0.4]
[1746694515576,0.01304,99798.0,99797.0,2.271203]
[1746694519321,0.01304,99798.0,99797.0,2.47160982]
[1746694521732,0.01304,99798.0,99797.0,2.271203]
[1746694524691,0.01002084,99792.0,99790.0,0.34]
[1746694524902,0.01002064,99794.0,99790.0,0.34]
[1746694525549,0.01002054,99795.0,99791.0,0.01002094]
[1746694525955,0.004,99792.0,99791.0,0.01002094]
[1746694526538,0.004,99792.0,99791.0,0.75002094]
[1746694527402,0.01602064,99794.0,99792.0,0.34]
[1746694527632,0.01002064,99794.0,99792.0,0.34]
[1746694528781,0.01878367,99793.0,99791.0,0.41002094]
[1746694528997,0.01878367,99793.0,99792.0,0.34]
[1746694529440,0.2104377,99792.0,99789.0,0.15]
[1746694529643,0.23232088,99790.0,99789.0,0.15]
[1746694529846,0.35177147,99790.0,99789.0,0.15]
[1746694530258,0.35881629,99790.0,99789.0,0.15]
[1746694530440,0.36820179,99790.0,99789.0,0.15]
[1746694530646,0.45159194,99790.0,99789.0,0.151]
[1746694531103,0.36820179,99790.0,99789.0,0.15]
[1746694531282,0.37420179,99790.0,99789.0,0.151]
[1746694531650,0.37820179,99790.0,99789.0,0.151]
[1746694532821,0.39278264,99790.0,99789.0,0.151]
[1746694534419,0.38878264,99790.0,99789.0,0.151]
[1746694534555,0.38678264,99790.0,99789.0,0.15]
[1746694534979,0.49444956,99790.0,99789.0,0.151]
[1746694535378,1.13175742,99790.0,99789.0,0.151]
[1746694536011,1.0310905,99790.0,99789.0,0.151]
[1746694537011,1.0285905,99790.0,99789.0,0.151]
[1746694541601,1.0285905,99790.0,99789.0,0.001]
[1746694541797,1.3685905,99790.0,99789.0,0.001]
[1746694542676,1.39667383,99790.0,99789.0,0.001]
[1746694542976,1.49734075,99790.0,99789.0,0.001]
[1746694543169,0.20046909,99766.0,99765.0,0.04708975]
[1746694543359,0.33343601,99766.0,99765.0,0.04708975]
[1746694543557,0.35221968,99766.0,99765.0,0.04708975]
[1746694544110,0.3592645,99766.0,99765.0,0.04708975]
[1746694544318,0.36865,99766.0,99765.0,0.04708975]
[1746694544493,0.36965,99766.0,99765.0,0.04708975]
[1746694544693,0.37165,99766.0,99765.0,0.04708975]
[1746694545452,0.37165,99766.0,99750.0,0.1159982]
[1746694545453,0.20049924,99751.0,99750.0,0.1159982]
[1746694545635,0.01002546,99746.0,99742.0,0.01203082]
[1746694545838,0.01002546,99746.0,99743.0,0.01002576]
[1746694546757,0.01002526,99748.0,99744.0,0.01002566]
[1746694547159,0.001,99746.0,99744.0,0.01002566]
[1746694547973,0.01002526,99748.0,99744.0,0.01102566]
[1746694548380,0.001,99746.0,99744.0,0.01102566]
[1746694548586,0.001,99746.0,99744.0,0.01002566]
[1746694549510,0.01002526,99748.0,99744.0,0.21053858]
[1746694549929,0.01002536,99747.0,99744.0,0.01102566]
[1746694550275,0.01002536,99747.0,99744.0,0.01002566]
[1746694550493,0.001,99746.0,99744.0,0.01002566]
[1746694550906,0.001,99746.0,99744.0,0.01102566]
[1746694551301,0.01102536,99747.0,99744.0,0.01002566]
[1746694551683,0.001,99746.0,99744.0,0.01102566]
[1746694551885,0.001,99746.0,99744.0,0.21153837]
[1746694552789,0.01002526,99748.0,99744.0,0.01102566]
[1746694553194,0.001,99747.0,99744.0,0.21153781]
[1746694553415,0.001,99747.0,99744.0,0.21053888]
[1746694553589,0.001,99747.0,99744.0,0.01102566]
[1746694553819,0.001,99746.0,99744.0,0.01102566]
[1746694554405,0.01002526,99748.0,99744.0,0.01102566]
[1746694554808,0.01002526,99748.0,99744.0,0.01002566]
[1746694555015,0.01102526,99748.0,99744.0,0.01102566]
[1746694556013,0.001,99748.0,99744.0,0.21153798]
[1746694556198,0.001,99748.0,99745.0,0.01002556]
[1746694557466,0.001,99748.0,99745.0,0.01102556]
[1746694558047,0.002,99748.0,99745.0,0.01102556]
[1746694558925,0.01202526,99748.0,99745.0,0.001]
[1746694559126,0.002,99748.0,99745.0,0.01102556]
[1746694560471,0.002,99748.0,99746.0,0.20050929]
[1746694561033,0.002,99748.0,99745.0,0.01102556]
[1746694561474,0.002,99748.0,99745.0,0.01002556]
[1746694562085,0.002,99748.0,99746.0,0.20050929]
[1746694562286,0.01002506,99750.0,99746.0,0.21053475]
[1746694562716,0.001,99748.0,99746.0,0.21053475]
[1746694562929,0.001,99748.0,99747.0,8.64494996]
[1746694563084,0.001,99748.0,99747.0,8.67476956]
[1746694563387,0.64733101,99769.0,99764.0,0.01002365]
[1746694563589,0.01002325,99768.0,99764.0,0.01002365]
[1746694563795,0.01002345,99766.0,99762.0,0.21050098]
[1746694565070,0.01002345,99766.0,99762.0,0.01002385]
[1746694565980,0.01002345,99766.0,99762.0,0.01102385]
[1746694566183,0.01002355,99765.0,99762.0,0.01102385]
[1746694566610,0.01002355,99765.0,99762.0,0.01202385]
[1746694567071,0.01002355,99765.0,99762.0,0.01102385]
[1746694567227,0.001,99766.0,99763.0,0.01002375]
[1746694567426,0.01002335,99767.0,99763.0,0.01002375]
[1746694567601,0.01002345,99766.0,99762.0,0.01002385]
[1746694568046,0.01002355,99765.0,99762.0,0.01002385]
[1746694568243,0.01002345,99766.0,99763.0,0.01002375]
[1746694568446,0.01002355,99765.0,99761.0,0.21050109]
[1746694568681,0.001,99765.0,99763.0,0.01002375]
[1746694569422,0.2104926,99766.0,99759.0,0.4]
[1746694569619,0.001,99765.0,99761.0,0.01102395]
[1746694570063,0.001,99765.0,99762.0,0.01002385]
[1746694570267,0.002,99765.0,99763.0,0.001]
[1746694570721,0.21049763,99764.0,99759.0,0.4]
[1746694571114,0.01002375,99763.0,99761.0,0.001]
[1746694572035,0.01002375,99763.0,99761.0,0.002]
[1746694572417,0.01102375,99763.0,99761.0,0.002]
[1746694572587,0.20047713,99762.0,99761.0,0.002]
[1746694573211,0.21587713,99762.0,99761.0,0.002]
[1746694573441,0.23197713,99762.0,99761.0,0.002]
[1746694573840,0.01002456,99755.0,99752.0,0.00200476]
[1746694574069,0.01002456,99755.0,99753.0,3.579602]
[1746694574226,0.01002456,99755.0,99752.0,4.424016]
[1746694574430,0.01002415,99759.0,99753.0,0.21051998]
[1746694574682,0.01002395,99761.0,99756.0,0.01002445]
[1746694574991,0.20047288,99765.0,99759.0,0.01002415]
[1746694575409,0.01002345,99766.0,99761.0,0.01002395]
[1746694575560,0.01002365,99764.0,99759.0,0.01002415]
[1746694575744,0.11069047,99765.0,99762.0,0.01002385]
[1746694576285,0.01002345,99766.0,99762.0,0.01002385]
[1746694576489,0.01002355,99765.0,99762.0,0.01002385]
[1746694577494,0.001,99763.0,99762.0,0.01002385]
[1746694578777,0.2104948,99765.0,99761.0,0.01002395]
[1746694578975,0.015,99764.0,99762.0,0.001]
[1746694579182,0.015,99764.0,99759.0,0.21050533]
[1746694579183,0.02502365,99764.0,99759.0,0.01002415]
[1746694579436,0.015,99763.0,99760.0,0.01002405]
[1746694579610,0.015,99763.0,99762.0,0.001]
[1746694579611,0.016,99763.0,99762.0,0.001]
[1746694579834,0.015,99763.0,99760.0,0.21050497]
[1746694580235,0.015,99763.0,99762.0,0.001]
[1746694580404,0.015,99763.0,99760.0,0.21050497]
[1746694581428,0.02572365,99764.0,99761.0,0.01002395]
[1746694581629,0.0157,99764.0,99761.0,0.01002395]
[1746694581871,0.001,99763.0,99762.0,0.001]
[1746694582641,0.01002355,99765.0,99761.0,0.01002395]
[1746694582832,0.001,99763.0,99761.0,0.01002395]
[1746694583226,0.001,99763.0,99760.0,0.01102405]
[1746694583227,0.01102375,99763.0,99759.0,0.61050706]
[1746694583435,0.0153,99761.0,99759.0,0.41002415]
[1746694583853,0.015,99762.0,99759.0,0.6105055]
[1746694584059,0.002,99763.0,99759.0,0.6105055]
[1746694584278,0.0153,99762.0,99759.0,0.41002415]
[1746694584489,0.0153,99761.0,99759.0,0.6105055]
[1746694584690,0.01002365,99764.0,99760.0,0.01002405]
[1746694584940,0.015,99763.0,99761.0,0.01002395]
[1746694585115,0.016,99763.0,99761.0,0.01102395]
[1746694585381,0.015,99762.0,99759.0,0.41002415]
[1746694585590,0.0157,99761.0,99759.0,0.41002415]
[1746694585729,0.0167,99761.0,99759.0,0.401]
[1746694585945,0.0167,99761.0,99757.0,0.21051076]
[1746694585946,0.20048718,99757.0,99756.0,0.04708975]
[1746694586200,0.3520222,99757.0,99756.0,0.04708975]
[1746694586770,0.32696108,99757.0,99743.0,0.00045468]
[1746694586971,0.22923877,99756.0,99743.0,0.00045468]
[1746694587782,0.23627765,99756.0,99743.0,0.00045468]
[1746694588834,0.23927765,99756.0,99743.0,0.00045468]
[1746694589148,0.23927765,99756.0,99743.0,0.04752784]
[1746694589149,0.24227765,99756.0,99743.0,0.04752784]
[1746694590184,0.2568185,99756.0,99743.0,0.04752784]
[1746694591516,0.17901475,99756.0,99743.0,0.00045468]
[1746694593452,0.17905475,99756.0,99743.0,0.00045468]
[1746694598017,0.16028665,99756.0,99743.0,0.00045468]
[1746694598235,0.15324777,99756.0,99743.0,0.00045468]
[1746694598952,0.1790239,99756.0,99743.0,0.00045468]
[1746694600944,0.16448305,99756.0,99746.0,0.1159982]
[1746694601350,0.14828305,99756.0,99746.0,0.1159982]
[1746694601551,0.13248305,99756.0,99746.0,0.1159982]
[1746694603485,0.11373677,99756.0,99751.0,0.01002496]
[1746694603711,0.20652919,99756.0,99751.0,0.02522496]
[1746694604099,0.20652919,99756.0,99751.0,0.01002496]
[1746694604299,0.20652919,99756.0,99750.0,0.01002506]
[1746694606535,0.20652919,99756.0,99749.0,0.01002516]
[1746694606830,0.20652919,99756.0,99746.0,0.16307136]
[1746694607272,0.30719611,99756.0,99746.0,0.04707316]
[1746694607400,0.33779611,99756.0,99746.0,0.04707316]
[1746694607592,0.35654965,99756.0,99746.0,0.04707316]
[1746694608015,0.35654965,99756.0,99743.0,0.00045468]
[1746694608016,0.36358258,99756.0,99745.0,0.04707316]
[1746694611149,0.36358258,99756.0,99743.0,0.00045468]
[1746694611360,0.36358258,99756.0,99755.0,0.00136166]
[1746694611575,0.37812343,99756.0,99755.0,0.00136166]
[1746694611778,0.45969036,99756.0,99755.0,0.00136166]
[1746694613475,1.09699822,99756.0,99755.0,0.00136166]
[1746694614243,1.09699822,99756.0,99723.0,0.05558498]
[1746694614244,0.01002717,99729.0,99723.0,0.05558498]
[1746694614537,0.01002717,99729.0,99724.0,1.47533667]
[1746694614736,0.21057275,99728.0,99725.0,1.436205]
[1746694615053,0.21057275,99728.0,99726.0,0.88474]
[1746694615253,0.01002717,99729.0,99727.0,0.07]
[1746694615484,0.01002677,99733.0,99729.0,0.01002717]
[1746694615638,0.01002677,99733.0,99729.0,0.0327]
[1746694615846,0.21056431,99732.0,99729.0,0.0327]
[1746694616451,0.01002687,99732.0,99730.0,0.0323]
[1746694616652,0.01002687,99732.0,99731.0,0.0323]
[1746694616858,0.01002697,99731.0,99728.0,0.74]
[1746694617163,0.01002697,99731.0,99730.0,0.34]
[1746694618142,0.01002697,99731.0,99728.0,0.41002727]
[1746694618353,0.01002697,99731.0,99730.0,0.34]
[1746694619795,0.01002697,99731.0,99729.0,0.34]
[1746694619999,0.01002697,99731.0,99730.0,0.001]
[1746694621400,0.01002697,99731.0,99729.0,0.4]
[1746694621606,0.01002687,99732.0,99729.0,0.41202717]
[1746694622203,0.01002687,99732.0,99729.0,0.41002717]
[1746694622378,0.01002687,99732.0,99730.0,0.001]
[1746694623101,0.01002687,99732.0,99729.0,0.4]
[1746694623276,0.01002687,99732.0,99729.0,0.402]
[1746694624519,0.01002687,99732.0,99729.0,0.4]
[1746694624902,0.01002687,99732.0,99730.0,0.001]